Workbook

Sheet 2023
A1: LOT # | B1: TENANT(S) | C1: R/O | D1: RENT AMT | E1: NEW RENT | F1: PHONE | G1: NOTES | H1: Jul-2023 | I1: Aug-2023 | J1: Sep-2023 | K1: Oct-2023 | L1: Nov-2023 | M1: Dec-2023 | N1: Total 2023
A2: 1 | B2: Nick Little and Christy Leis | C2: R | D2: 750 | E2: 750 | F2: 828 399 0998 | G2: 2BR 1BA 245 Riverview Dr. | H2: 750 | I2: =300+200+200+50 -> 750 | J2: =250+350+150 -> 750 | K2: =50+200+300+200 -> 750 | L2: 750 | M2: =250+450 -> 700 | N2: =SUM(H2:M2) -> 4450
A3: =+A2+1 -> 2 | B3: Charles and Tanisha McAbee | C3: O | D3: 450 | E3: 450 | F3: 828 550 6306 | G3: 27 Stoneridge Rd. + STORAGE - 828 550 6438/828 456 9999 | H3: 450 | I3: 450 | J3: 450 | K3: 450 | L3: 450 | M3: 450 | N3: =SUM(H3:M3) -> 2700
A4: =+A3+1 -> 3 | B4: Christy Ott | C4: O | D4: 310 | E4: 350 | F4: 828 215 4452 | G4: Post office lady - 41 Stoneridge Rd. | H4: 315 | I4: 315 | J4: 350 | K4: 350 | L4: 350 | M4: 350 | N4: 2030
A5: 4 | B5: Robert Stanaland and Bonnie Dixon | C5: RTO | D5: 750 | E5: 775 | F5: 828 246 2395 | G5: 2BR 2BA Andy - 47 Stoneridge Rd. ANDY | H5: 750 | I5: 775 | J5: 775 | K5: 775 | L5: 775 | M5: 775 | N5: 4625
A6: 5 | B6: Noe Castro | C6: O | D6: 650 | E6: 350 | F6: 828 283 3622 | G6: 2BR 1.5BA 55 Stoneridge Rd. | H6: 650 | I6: 350 | J6: 350 | K6: 300 | L6: 300 | M6: 300 | N6: 2250
A7: 6 | B7: Alexander and Darlinda Dross | C7: O | D7: 310 | E7: 350 | F7: 828 246 1907 | G7: 91 Stoneridge Rd. | H7: 310 | I7: 310 | J7: 350 | K7: 350 | L7: 350 | M7: 350 | N7: 2020
A8: 7 | B8: Darrell James | C8: RTO | D8: 755 | E8: 785 | F8: 828 558 1976 | G8: 2BR 2BA 107 Stoneridge Rd. Work 828 648 2768 | H8: 755 | I8: 755 | J8: 785 | K8: =600+225 -> 825 | L8: 825 | M8: =600+185 -> 785 | N8: 4730
A9: 8 | B9: Arthur Booth | C9: O | D9: 230 | E9: 350 | F9: 828 231 3711 | G9: 115 Stoneridge Rd. Handyman, Yard | H9: 230 | I9: 230 | J9: 350 | K9: 350 | L9: 350 | M9: 350 | N9: 1860
A10: 9 | B10: Penny McAbee and Mark McCraw | C10: RTO | D10: 750 | E10: 800 | F10: 828 564 3222 | G10: 2BR 2BA 121 Stoneridge Rd. Work 828 452 3130 | H10: 750 | I10: 750 | J10: 800 | K10: 800 | L10: 800 | M10: 800 | N10: 4700
A11: 10 | B11: Thomas Rice | C11: RTO | D11: 530 | E11: 600 | F11: 828 356 4650 | G11: 1BR 1BA 133 Stoneridge Rd. Work 704 300 7891 | H11: 540 | I11: 540 | J11: 600 | K11: 600 | L11: 600 | M11: 600 | N11: 3480
A12: 11 | B12: Caleb Jaynes | C12: R | D12: 630 | E12: 630 | F12: 828 400 6706 | G12: 1BR 1BA 102 Stoneridge Rd. $300 Sec. Deposit | H12: 630 | I12: 630 | J12: 630 | K12: 630 | L12: 630 | M12: 630 | N12: 3780
A13: 12 | B13: Aunt Bobby Hall | C13: O | D13: 100 | E13: 350 | F13: 423 237 5127 | G13: 2BR 2BA 96 Stoneridge Rd. | H13: 100 | I13: 100 | J13: 350 | K13: 350 | L13: 350 | M13: 350 | N13: 1600
A14: Home | B14: Patricia Payne | C14: R | E14: 2000 | F14: 828 246 3812 | G14: 3BR 1BA plus Basement 317 Riverview Dr | H14: 2000 | I14: 2000 | J14: 2000 | K14: 2000 | L14: 2000 | M14: 2000 | N14: 12000
A16: =+A13+1 -> 13 | B16: Dowble Wide / Chris Payne | C16: RTO | E16: 1200 | F16: 828 550 9997 | G16: 3BR 2BA 241 Riverview Dr. | H16: 1200 | I16: 1200 | J16: 1200 | K16: 1200 | L16: 1200 | M16: 1200 | N16: 7200
A17: 14 | B17: Double Wide / Charles & Tanisha | C17: RTO | E17: 1000 | F17: 828 246 3812 | G17: 3BR 2BA 215 Riverview Dr. | H17: 1000 | I17: 1000 | J17: 1000 | K17: 1000 | L17: 1000 | M17: 1000 | N17: 6000
D18: =SUM(D2:D17) -> 6215 | E18: =SUM(E2:E17) -> 10740 | H18: =SUM(H2:H17) -> 10430 | I18: =SUM(I2:I17) -> 10155 | J18: 10740 | K18: 10730 | L18: 10730 | M18: 10640 | N18: 63425
M20: EXPENSES: | N20: =SUM(D22:D28) -> 2675.4
B21: EXPENSES | D21: AMOUNT
B22: ELECTRICITY | D22: =500+323.17+96.08+102.07+125.99+128.07+105.9 -> 1381.28
B23: LAWN CARE | D23: =341+53.12+400+300+200 -> 1294.12
B24: REPAIR AND MAINTENANCE
B25: INSURANCE
B29: TOTAL EXPENSES | D29: =SUM(D22:D28) -> 2675.4

Sheet 2024
A1: LOT # | B1: TENANT(S) | C1: R/O | D1: NEW RENT | E1: PHONE | F1: NOTES | G1: Jan-2024 | H1: Feb-2024 | I1: Mar-2024 | J1: Apr-2024 | K1: May-2024 | L1: Jun-2024 | M1: Jul-2024 | N1: Aug-2024 | O1: Sep-2024 | P1: Oct-2024 | Q1: Nov-2024 | R1: Dec-2024 | S1: Total 2024
A2: 1 | B2: Cynthia Bradley/Hunter Miller | C2: R | D2: 850 | E2: 828 399 0998 | F2: 2BR 1BA 245 Riverview Dr. $850 Sec. Deposit | G2: 850 | H2: 850 | I2: 850 | J2: 850 | K2: 850 | L2: 850 | M2: 890 | N2: 890 | O2: 890 | P2: 890 | Q2: 890 | R2: 890 | S2: =SUM(G2:R2) -> 10440
A3: =+A2+1 -> 2 | B3: Charles and Tanisha McAbee | C3: O | D3: 450 | E3: 828 550 6306 | F3: 27 Stoneridge Rd. + STORAGE - 828 550 6438/828 456 9999 | G3: 450 | H3: 450 | I3: 450 | J3: 450 | K3: 450 | L3: 450 | M3: 450 | N3: 450 | O3: 450 | P3: 450 | Q3: 450 | R3: 450 | S3: =SUM(G3:R3) -> 5400
A4: =+A3+1 -> 3 | B4: Christy Ott | C4: O | D4: 350 | E4: 828 215 4452 | F4: Post office lady - 41 Stoneridge Rd. | G4: 350 | H4: 350 | I4: 350 | J4: 350 | K4: 350 | L4: 350 | M4: 350 | N4: 350 | O4: 350 | P4: 350 | Q4: 350 | R4: 350 | S4: 4200
A5: 4 | B5: Robert Stanaland and Bonnie Dixon | C5: RTO | D5: 775 | E5: 828 246 2395 | F5: 2BR 2BA Andy - 47 Stoneridge Rd. ANDY | G5: 775 | H5: 775 | I5: 775 | J5: 775 | K5: 775 | L5: 775 | M5: 775 | N5: 775 | O5: 775 | P5: 775 | Q5: 775 | R5: 775 | S5: 9300
A6: 5 | B6: Noe Castro | C6: O | D6: 350 | E6: 828 283 3622 | F6: 2BR 1.5BA 55 Stoneridge Rd. | G6: 400 | H6: 350 | I6: 350 | J6: 350 | K6: 350 | L6: 350 | M6: 350 | N6: 350 | O6: 350 | P6: 350 | Q6: 350 | R6: 350 | S6: 4250
A7: 6 | B7: Alexander and Darlinda Dross | C7: O | D7: 350 | E7: 828 246 1907 | F7: 91 Stoneridge Rd. | G7: 350 | H7: 350 | I7: 350 | J7: 350 | K7: 350 | L7: 350 | M7: 350 | N7: 350 | O7: 350 | P7: 350 | Q7: 350 | R7: 350 | S7: 4200
A8: 7 | B8: Darrell James | C8: RTO | D8: 785 | E8: 828 558 1976 | F8: 2BR 2BA 107 Stoneridge Rd. Work 828 648 2768 | G8: 825 | H8: 785 | I8: 785 | J8: 785 | K8: 785 | L8: =500+385 -> 885 | M8: 785 | N8: =400+385 -> 785 | O8: =600+185 -> 785 | P8: 785 | Q8: 785 | R8: 785 | S8: 9560
A9: 8 | B9: Arthur Booth | C9: O | D9: 350 | E9: 828 231 3711 | F9: 115 Stoneridge Rd. Handyman, Yard | G9: 350 | H9: 350 | I9: 350 | J9: 350 | K9: 350 | L9: 50 | M9: 350 | N9: 250 | O9: 250 | P9: 250 | Q9: 250 | R9: 250 | S9: 3400
A10: 9 | B10: Paul Lauziere | C10: RTO | D10: 800 | E10: 828 550 6861 | F10: 2BR 2BA 121 Stoneridge Rd. $800 Sec. Deposit | G10: 800 | H10: 800 | I10: 800 | J10: 800 | K10: 800 | L10: 800 | M10: 800 | N10: 800 | O10: 800 | P10: 800 | Q10: 800 | R10: 800 | S10: 9600
A11: 10 | B11: April Parker | C11: RTO | D11: 880 | E11: 828 214 9562 | F11: 1BR 1BA 133 Stoneridge Rd. $880 Sec. Deposit | G11: 880 | H11: 880 | I11: 880 | J11: 880 | K11: 880 | L11: 880 | M11: 880 | N11: 880 | O11: 880 | P11: 880 | Q11: 880 | R11: 880 | S11: 10560
A12: 11 | B12: Caleb Jaynes | C12: R | D12: 630 | E12: 828 400 6706 | F12: 1BR 1BA 102 Stoneridge Rd. $300 Sec. Deposit | G12: 630 | H12: 630 | I12: 630 | J12: 630 | K12: 630 | L12: 630 | M12: 630 | N12: 630 | O12: 630 | P12: 630 | Q12: 630 | R12: 630 | S12: 7560
A13: 12 | B13: Noe Castro | C13: O | D13: 350 | E13: 828 283 3622 | F13: 2BR 2BA 96 Stoneridge Rd. | G13: 350 | H13: 350 | I13: 350 | J13: 350 | K13: 350 | L13: 350 | M13: 350 | N13: 350 | O13: 350 | P13: 350 | Q13: 350 | R13: 350 | S13: 4200
A15: Home | B15: Patricia Payne | C15: R | D15: 2000 | E15: 828 246 3812 | F15: 3BR 1BA plus Basement 371 Riverview Dr | G15: 2000 | H15: 2000 | I15: 2000 | J15: 2000 | K15: 2000 | L15: 2000 | M15: 2000 | N15: 2000 | O15: 2000 | P15: 2000 | Q15: 2000 | R15: 2000 | S15: 24000
A16: =+A13+1 -> 13 | B16: Penny McAbee and Mark McCraw | C16: O | D16: 1203 | E16: 828 550 9997 | F16: 3BR 2BA 241 Riverview Dr. - will sell for $50,000 | G16: 1203 | H16: 1203 | I16: 1203 | J16: 1203 | K16: 1203 | L16: 1203 | M16: 1203 | N16: 1203 | O16: 1203 | P16: 1203 | Q16: 1203 | R16: 1203 | S16: =SUM(H16:R16) -> 13233
A17: 14 | B17: Charles & Tanisha McAbee | C17: R | D17: 1000 | E17: 828 246 3812 | F17: 3BR 2BA 215 Riverview Dr. Purchased for $40,000 | G17: 1000 | H17: 1000 | I17: 1000 | J17: 1000 | K17: 1000 | L17: 1000 | M17: 1000 | N17: 1000 | O17: 1000 | P17: 1000 | Q17: 1000 | R17: 1000 | S17: 12000
D18: =SUM(D2:D17) -> 11123 | G18: =SUM(G2:G17) -> 11213 | H18: =SUM(H2:H17) -> 11123 | I18: 11123 | J18: 11123 | K18: 11123 | L18: 10923 | M18: 11163 | N18: 11063 | O18: 11063 | P18: 11063 | Q18: 11063 | R18: 11063 | S18: 131903
Q20: EXPENSES | S20: =SUM(D22:D31) -> 13997.87
B21: EXPENSES | D21: Amount
B22: ELECTRICITY | D22: =99.01+88.75+88.7+107.71+90.07+96.58+101.72+96.2+90.25+90.33+110.92+106.18+105.9 -> 1272.32
B23: INSURANCE | D23: =743.65+3040+1595 -> 5378.65
B24: LAWN CARE | D24: =200*8 -> 1600
B25: REAL ESTATE TAXES | D25: =4111.45+389.65+1245.8 -> 5746.9
B26: REPAIR AND MAINTENANCE
B32: TOTAL | D32: =SUM(D22:D31) -> 13997.87

Sheet 2025
A1: LOT # | B1: TENANT(S) | C1: R/O | D1: NEW RENT | E1: PHONE | F1: NOTES | G1: Jan-2025 | H1: Feb-2025 | I1: Mar-2025 | J1: Apr-2025 | K1: May-2025 | L1: Jun-2025 | M1: Jul-2025 | N1: Aug-2025 | O1: Sep-2025 | P1: Oct-2025 | Q1: Nov-2025 | R1: Dec-2025 | S1: Total 2025
A2: 1 | B2: Cynthia Bradley/Hunter Miller | C2: RTO | D2: 850 | E2: 828 399 0998 | F2: 2BR 1BA 245 Riverview Dr. $850 Sec. Deposit | G2: 890 | H2: 850 | I2: 850 | J2: 890 | K2: 890 | L2: 890 | M2: 900 | N2: 940 | O2: 890 | P2: 900 | Q2: 900 | R2: 900 | S2: =SUM(G2:R2) -> 10690
A3: =+A2+1 -> 2 | B3: Charles and Tanisha McAbee | C3: O | D3: 450 | E3: 828 550 6306 | F3: 27 Stoneridge Rd. + STORAGE - 828 550 6438/828 456 9999 | G3: 450 | H3: 450 | I3: 450 | J3: 450 | K3: 450 | L3: 450 | M3: 450 | N3: 450 | O3: 450 | P3: 450 | Q3: 450 | R3: 450 | S3: =SUM(G3:R3) -> 5400
A4: =+A3+1 -> 3 | B4: Christy Ott | C4: O | D4: 400 | E4: 828 215 4452 | F4: 41 Stoneridge Rd. | G4: 350 | H4: 350 | I4: 350 | J4: 350 | K4: 350 | L4: 350 | M4: 400 | N4: 400 | O4: 400 | P4: 400 | Q4: 400 | R4: 400 | S4: 4500
A5: 4 | B5: Robert Stanaland and Bonnie Dixon | C5: RTO | D5: 775 | E5: 828 246 2395 | F5: 2BR 2BA 47 Stoneridge Rd. ANDY | G5: 775 | H5: 775 | I5: 775 | J5: 775 | K5: 775 | L5: 775 | M5: 775 | N5: 775 | O5: 775 | P5: 775 | Q5: 775 | R5: 775 | S5: 9300
A6: 5 | B6: Noe Castro | C6: O | D6: 400 | E6: 828 283 3622 | F6: 2BR 1.5BA 55 Stoneridge Rd. | G6: 350 | H6: 350 | I6: 350 | J6: 350 | K6: 350 | L6: 350 | M6: 400 | N6: 400 | O6: 400 | P6: 400 | Q6: 400 | R6: 400 | S6: 4500
A7: 6 | B7: Bethany Powers | C7: RTO | D7: 1100 | E7: 828 735 6455 | F7: 2 BR 1 BA 91 Stoneridge Rd. | G7: 350 | H7: 350 | I7: 350 | J7: 350 | K7: 350 | L7: 350 | M7: 1100 | N7: 1100 | O7: 1100 | P7: 1100 | Q7: 1100 | R7: 1100 | S7: 8700
A8: 7 | B8: Darrell James | C8: RTO | D8: 785 | E8: 828 558 1976 | F8: 2BR 2BA 107 Stoneridge Rd. Work 828 648 2768 | G8: 785 | H8: 785 | I8: 785 | J8: 785 | K8: 785 | L8: 785 | M8: 785 | N8: 785 | O8: 785 | P8: 785 | Q8: 785 | R8: 785 | S8: 9420
A9: 8 | B9: Arthur Booth | C9: O | D9: 300 | E9: 828 231 3711 | F9: 115 Stoneridge Rd. Handyman, Yard | G9: 350 | H9: 350 | I9: 350 | J9: 350 | K9: 350 | L9: 350 | M9: 300 | N9: 300 | O9: 300 | P9: 300 | Q9: 300 | R9: 300 | S9: 3900
A10: 9 | B10: Paul Lauziere | C10: RTO | D10: 800 | E10: 828 550 6861 | F10: 2BR 2BA 121 Stoneridge Rd. $800 Sec. Deposit | G10: 800 | H10: 800 | I10: 800 | J10: 800 | K10: 800 | L10: 800 | M10: 900 | N10: 900 | O10: 900 | P10: 900 | Q10: 900 | R10: 900 | S10: 10200
A11: 10 | B11: Sean Davis | C11: RTO | D11: 900 | E11: 828 214 9562 | F11: 1BR 1BA 133 Stoneridge Rd. $1,300 ($200 cleaning) | G11: 900 | H11: 900 | I11: 900 | J11: 900 | K11: 900 | L11: 900 | M11: 900 | N11: 900 | O11: 900 | P11: 900 | Q11: 900 | R11: 900 | S11: 10800
A12: 11 | B12: Karen Wheeler | C12: RTO | D12: 650 | E12: 828 400 6706 | F12: 1BR 1BA 102 Stoneridge Rd. $300 Sec. Deposit | G12: 650 | H12: 650 | I12: 650 | J12: 650 | K12: 650 | L12: 650 | M12: 650 | N12: 650 | O12: 650 | P12: 650 | Q12: 650 | R12: 650 | S12: 7800
A13: 12 | B13: Noe Castro | C13: O | D13: 400 | E13: 828 283 3622 | F13: 2BR 2BA 96 Stoneridge Rd. | G13: 350 | H13: 350 | I13: 350 | J13: 350 | K13: 350 | L13: 350 | M13: 400 | N13: 400 | O13: 400 | P13: 400 | Q13: 400 | R13: 400 | S13: 4500
A15: Home | B15: Nicholas Strickland | C15: R | D15: 2000 | E15: 828 246 3812 | F15: 3BR 1BA 371 Riverview Dr Upstairs | G15: 2000 | H15: 2000 | I15: 2000 | J15: 2000 | K15: 2000 | L15: 2000 | M15: 2000 | N15: 2000 | O15: 2000 | P15: 2000 | Q15: 2000 | R15: 2000 | S15: 24000
A16: Home | C16: R | D16: 1400 | F16: 2BR 1BA 371 Riverview Drive Downstairs
A17: =+A13+1 -> 13 | B17: Penny McAbee and Mark McCraw | C17: RTO | D17: 1203 | E17: 828 550 9997 | F17: 3BR 2BA 241 Riverview Dr. | G17: 1203 | H17: 1203 | I17: 1203 | J17: 1203 | K17: 1203 | L17: 1203 | M17: 1203 | N17: 1203 | O17: 1203 | P17: 1253 | Q17: 1253 | R17: 1253 | S17: 14586
A18: 14 | B18: Charles & Tanisha McAbee | C18: RTO | D18: 1000 | E18: 828 246 3812 | F18: 3BR 2BA 215 Riverview Dr. | G18: 1000 | H18: 1000 | I18: 1000 | J18: 1000 | K18: 1000 | L18: 1000 | M18: 1000 | N18: 1000 | O18: 1000 | P18: 1000 | Q18: 1000 | R18: 1000 | S18: 12000
D19: =SUM(D2:D18) -> 13413 | G19: =SUM(G2:G18) -> 11203 | H19: =SUM(H2:H18) -> 11163 | I19: 11163 | J19: 11203 | K19: 11203 | L19: 11203 | M19: 12163 | N19: 12203 | O19: 12153 | P19: 12213 | Q19: 12213 | R19: 12213 | S19: 140296
B20: EXPENSES | D20: Amount | R20: EXPENSES | S20: =SUM(D21:D29) -> 15541.56
B21: AUTO EXPENSE
B22: ELECTRICITY | D22: =68*12 -> 816 | R22: NET | S22: =+S19-S20 -> 124754.44
B23: LAWN CARE | D23: 1600
B24: MATERIALS
B25: REPAIR AND MAINTENANCE | D25: 2000
B26: WATER-SEPTIC-WELL
B27: INSURANCE | D27: =448.22*12 -> 5378.64
B28: LICENSES & PERMITS
B29: RE Taxes | D29: =478.91*12 -> 5746.92
B30: TOTAL | D30: =SUM(D21:D29) -> 15541.56

Sheet Units Details
B2: LOT # | C2: TENANT(S) | D2: NOTES | E2: R/O | F2: LOT RENT | G2: Sale Price | H2: Monthly | I2: Payoff Date | J2: Balance 10/25 | K2: Year | L2: VIN | N2: Rent 2036
B3: 1 | C3: Cynthia Bradley/Hunter Miller | D3: 2BR 1BA 245 Riverview Dr. $850 Sec. Deposit | E3: RTO | F3: 850 | G3: 40000 | H3: 450 | I3: 2037-11-01 | J3: 37878 | K3: 2000 | L3: 13846194 | M3: Title | N3: 850
B4: =+B3+1 -> 2 | C4: Charles and Tanisha McAbee | D4: 27 Stoneridge Rd. + STORAGE - 828 550 6438/828 456 9999 | E4: O | F4: 450 | N4: 800
B5: =+B4+1 -> 3 | C5: Christy Ott | D5: 41 Stoneridge Rd. | E5: O | F5: 400 | N5: 800
B6: 4 | C6: Robert Stanaland and Bonnie Dixon | D6: 2BR 2BA 47 Stoneridge Rd. ANDY | E6: RTO | F6: 775 | G6: 35000 | H6: 425 | I6: 2033-08-01 | J6: 29578 | K6: 2000 | L6: VAFLY9A53819CM12 | M6: Title | N6: 800
B7: 5 | C7: Noe Castro | D7: 2BR 1.5BA 55 Stoneridge Rd. | E7: O | F7: 400 | N7: 800
B8: 6 | C8: Bethany Powers | D8: 91 Stoneridge Rd. | E8: RTO | F8: 1100 | G8: 50000 | H8: 700 | I8: 2033-08-01 | J8: 46611 | K8: 1998 | L8: H152476G | M8: Title | N8: 800
B9: 7 | C9: Darrell James | D9: 2BR 2BA 107 Stoneridge Rd. Work 828 648 2768 | E9: RTO | F9: 785 | G9: 35000 | H9: 435 | I9: 2033-04-01 | J9: 29296 | K9: 1996 | L9: NCFLS41A44475EW13 | M9: Title | N9: 800
B10: 8 | C10: Arthur Booth | D10: 115 Stoneridge Rd. Handyman, Yard | E10: O | F10: 400 | N10: 800
B11: 9 | C11: Paul Lauziere | D11: 2BR 2BA 121 Stoneridge Rd. $800 Sec. Deposit | E11: RTO | F11: 800 | G11: 37000 | H11: 400 | I11: 2036-12-01 | J11: 35415 | K11: 1999 | L11: GAFLX07A44992-B412 | M11: Bill Of Sale Only | N11: 800
B12: 10 | C12: Sean Davis | D12: 1BR 1BA 133 Stoneridge Rd. $1,300 ($200 cleaning) | E12: RTO | F12: 900 | G12: 35000 | H12: 500 | I12: 2034-08-01 | J12: 35000 | K12: 2003 | L12: CLM80315TN | M12: Title | N12: 800
B13: 11 | C13: Karen Wheeler | D13: 1BR 1BA 102 Stoneridge Rd. $300 Sec. Deposit | E13: RTO | F13: 650 | G13: 25000 | H13: 250 | I13: 2038-11-01 | J13: 24229 | K13: 2002 | L13: CLM079172TN | M13: Title | N13: 800
B14: 12 | C14: Noe Castro | D14: 2BR 2BA 96 Stoneridge Rd. | E14: O | F14: 400 | N14: 800
B16: Home | C16: Nicholas Strickland | D16: 3BR 1BA Top House 371 Riverview Dr | E16: R | F16: 2000 | N16: 2800
B17: Home | C17: Not Renovated Yet | D17: 2BR 1BA Basement 371 Riverview Dr | E17: R | F17: 1400 | N17: 1600
B18: =+B14+1 -> 13 | C18: Penny McAbee and Mark McCraw | D18: 3BR 2BA 241 Riverview Dr. | E18: RTO | F18: 1203 | G18: 57000 | H18: 803 | I18: 2033-10-01 | J18: 52879 | K18: 1994 | L18: CLH 018798TNAB | M18: Title | N18: 850
B19: 14 | C19: Charles & Tanisha McAbee | D19: 3BR 2BA 215 Riverview Dr. | E19: RTO | F19: 1000 | G19: 60000 | H19: 600 | I19: 2037-07-01 | J19: 54813 | K19: 1987 | L19: GAFLSH2BG44347180 | M19: Bill Of Sale Only | N19: 850
F20: =SUM(F3:F19) -> 13513 | G20: =SUM(G3:G19) -> 374000 | H20: 4563 | J20: 345699 | N20: =SUM(N3:N19) -> 15750
